fUSD/lending_fUSD_20251211
["ID","MTS","AMOUNT","RATE_DAILY","PERIOD"]
[398187228,1765428654537,-151.0,0.000395,120]
[398187229,1765428654547,-151.0,0.000395,60]
[398187230,1765428654556,-151.0,0.000395,120]
[398187231,1765428654566,-2156.522747,0.000395,120]
[398187232,1765428654577,-1371.321467,0.000395,120]
[398187233,1765428654598,-369.22941,0.000395,120]
[398187234,1765428654610,-151.0,0.000395,60]
[398187235,1765428654619,-151.0,0.000395,120]
[398187236,1765428654629,-1371.321467,0.000395,120]
[398187237,1765428654638,-369.22941,0.000395,120]
[398187238,1765428654650,-1371.321467,0.000395,120]
[398187239,1765428654664,-151.0,0.000395,120]
[398187240,1765428654674,-151.0,0.000395,120]
[398187241,1765428654684,-151.0,0.000395,120]
[398187242,1765428654694,-151.0,0.000395,120]
[398187243,1765428654704,-151.0,0.000395,120]
[398187244,1765428654715,-160.032742,0.000395,120]
[398187245,1765428654729,-157.661309,0.000395,120]
[398187246,1765428654738,-360.74093,0.000395,120]
[398187247,1765428654748,-152.769227,0.000395,120]
[398187248,1765428654757,-762.732334,0.000395,120]
[398187249,1765428654766,-157.661309,0.000395,120]
[398187250,1765428654776,-360.74093,0.000395,120]
[398187251,1765428654786,-252.536931,0.000395,120]
[398187252,1765428654795,-762.732334,0.000395,120]
[398187253,1765428654806,-157.661309,0.000395,120]
[398187254,1765428654815,-360.74093,0.000395,120]
[398187255,1765428654825,-374.3489,0.000395,120]
[398187256,1765428654835,-252.536931,0.000395,120]
[398187257,1765428654844,-360.74093,0.000395,120]
[398187258,1765428654853,-762.732334,0.000395,120]
[398187259,1765428654862,-374.3489,0.000395,120]
[398187260,1765428654871,-252.536931,0.000395,120]
[398187261,1765428654880,-374.3489,0.000395,120]
[398187262,1765428654890,-762.732334,0.000395,120]
[398187263,1765428654900,-252.536931,0.000395,120]
[398187264,1765428654909,-310.999827,0.000395,120]
[398187265,1765428654919,-157.661309,0.000395,120]
[398187266,1765428654928,-374.3489,0.000395,120]
[398187267,1765428654938,-310.999827,0.000395,120]
[398187268,1765428654948,-151.0,0.000395,120]
[398187269,1765428654958,-310.999827,0.000395,120]
[398187270,1765428654967,-310.999827,0.000395,120]
[398187271,1765428654977,-1769.767168,0.000395,120]
[398187272,1765428654988,-1769.767168,0.000395,120]
[398187273,1765428654998,-1769.767168,0.000395,120]
[398187274,1765428655007,-1769.767168,0.000395,120]
[398187275,1765428655016,-199.712362,0.000395,120]
[398187276,1765428655025,-151.0,0.000395,120]
[398187277,1765428655034,-151.0,0.000395,120]
[398187278,1765428655043,-151.0,0.000395,120]
[398187279,1765428655052,-151.0,0.000395,120]
[398187280,1765428655061,-151.0,0.000395,120]
[398187281,1765428655071,-151.0,0.000395,120]
[398187282,1765428655080,-170.985592,0.000395,120]
[398187283,1765428655090,-1140.999619,0.000395,120]
[398187284,1765428655099,-237.501668,0.000395,120]
[398187285,1765428655109,-170.985592,0.000395,120]
[398187286,1765428655123,-151.0,0.000395,120]
[398187287,1765428655133,-1140.999619,0.000395,120]
[398187288,1765428655143,-170.985592,0.000395,120]
[398187289,1765428655152,-1140.999619,0.000395,120]
[398187290,1765428655163,-151.0,0.000395,120]
[398187291,1765428655173,-285.411958,0.000395,120]
[398187292,1765428655183,-170.985592,0.000395,120]
[398187293,1765428655361,-285.411958,0.000395,120]
[398187294,1765428655371,-285.411958,0.000395,120]
[398187295,1765428655381,-561.205675,0.000395,120]
[398187296,1765428655391,-285.411958,0.000395,120]
[398187297,1765428655400,-561.205675,0.000395,120]
[398187298,1765428655409,-561.205675,0.000395,120]
[398187299,1765428655419,-1140.999619,0.000395,120]
[398187300,1765428655429,-151.0,0.000395,120]
[398187301,1765428655442,-561.205675,0.000395,120]
[398187302,1765428655452,-1544.90724,0.000395,120]
[398187303,1765428655461,-151.0,0.000395,120]
[398187304,1765428655470,-1544.90724,0.000395,120]
[398187305,1765428655480,-151.0,0.000395,120]
[398187306,1765428655490,-1544.90724,0.000395,120]
[398187307,1765428655500,-151.0,0.000395,120]
[398187308,1765428655509,-1544.90724,0.000395,120]
[398187309,1765428655518,-903.896614,0.000395,120]
[398187310,1765428655529,-903.896614,0.000395,120]
[398187311,1765428655538,-1188.819173,0.000395,120]
[398187312,1765428655548,-903.896614,0.000395,120]
[398187313,1765428655557,-903.896614,0.000395,120]
[398187314,1765428655567,-1188.819173,0.000395,120]
[398187315,1765428655576,-180.23917,0.000395,120]
[398187316,1765428655586,-1188.819173,0.000395,120]
[398187317,1765428655595,-180.23917,0.000395,120]
[398187318,1765428655604,-500.0,0.00039589,60]
[398187319,1765428655613,-165.22,0.00039654,2]
[398187320,1765428655623,-500.0,0.00039726,60]
[398187321,1765428655632,-563.75,0.00039726,120]
[398187322,1765428655642,-563.75,0.00039726,120]
[398187323,1765428655651,-563.75,0.00039726,120]
[398187324,1765428655660,-563.75,0.00039726,120]
[398187325,1765428655669,-563.75,0.00039726,120]
[398187326,1765428655678,-563.75,0.00039726,120]
[398187327,1765428655688,-563.75,0.00039726,120]
[398187328,1765428655697,-563.75,0.00039726,120]
[398187329,1765428655706,-563.75,0.00039726,120]
[398187330,1765428655715,-563.75,0.00039726,120]
[398187331,1765428655724,-563.75,0.00039726,120]
[398187332,1765428655735,-563.75,0.00039726,120]
[398187333,1765428655745,-563.75,0.00039726,120]
[398187334,1765428655754,-563.75,0.00039726,120]
[398187335,1765428655763,-563.75,0.00039726,120]
[398187336,1765428655773,-563.75,0.00039726,120]
[398187337,1765428655782,-563.75,0.00039726,120]
[398187338,1765428655792,-563.75,0.00039726,120]
[398187339,1765428655802,-563.75,0.00039726,120]
[398187340,1765428655811,-563.75,0.00039726,120]
[398187341,1765428655820,-563.75,0.00039726,120]
[398187342,1765428655829,-563.75,0.00039726,120]
[398187343,1765428655839,-563.75,0.00039726,120]
[398187344,1765428655849,-563.83965595,0.00039726,120]
[398187345,1765428655858,-1784.51389124,0.00039819,2]
[398187346,1765428655868,-500.0,0.00039863,60]
[398187347,1765428655877,-18365.0,0.00039875,30]
[398187348,1765428655886,-9421.87731092,0.000399,30]
[398187349,1765428655896,-1232.14,0.000399,30]
[398187350,1765428655905,-3460.4360287,0.0003998,30]
[398187351,1765428655915,-500.0,0.00039999,60]
[398187352,1765428655924,-500.0,0.0004,60]
[398187353,1765428655933,-600.0,0.0004,30]
[398187354,1765428655943,-504.0,0.0004,120]
[398187355,1765428655953,-500.0,0.0004,30]
[398187356,1765428655963,-9383.91557522,0.0004,120]
[398187357,1765428655972,-2192.96605339,0.0004,30]
[398187358,1765428655983,-155.10264535,0.0004,2]
[398187359,1765428655992,-1000.0,0.0004,120]
[398187360,1765428656001,-1000.0,0.0004,120]
[398187361,1765428656010,-1000.0,0.0004,30]
[398187362,1765428656020,-5200.0,0.0004,120]
[398187363,1765428656030,-329.0,0.0004,120]
[398187364,1765428656039,-1000.0,0.0004,120]
[398187365,1765428656049,-1064.7539864,0.0004,120]
[398187366,1765428656058,-162.11,0.0004,7]
[398187367,1765428656067,-1000.0,0.0004,120]
[398187368,1765428656077,-504.48,0.0004,120]
[398187369,1765428656086,-151.00968596,0.0004,120]
[398187370,1765428656097,-1141.93721464,0.0004,120]
[398187371,1765428656107,-1025.0,0.0004,120]
[398187372,1765428656118,-5000.65432178,0.0004,10]
[398187373,1765428656130,-5000.98765421,0.0004,11]
[398187374,1765428656141,-5216.12345678,0.0004,12]
[398187375,1765428656150,-850.34920464,0.00040015,120]
[398187376,1765428656161,-22849.67558,0.000401,7]
[398187377,1765428656170,-1166.66667,0.000401,2]
[398187378,1765428656179,-500.0,0.00040137,60]
[398187379,1765428656189,-480.43,0.00040137,2]
[398187380,1765428656199,-480.43,0.00040137,2]
[398187381,1765428656208,-480.07,0.00040137,2]
[398187382,1765428656218,-1873.62974868,0.00040183,120]
[398187383,1765428656227,-1784.51389124,0.00040211,2]
[398187384,1765428656238,-262.18408321,0.00040274,60]
[398187385,1765428656247,-150.0,0.00040397,2]
[398187386,1765428656256,-182.0,0.0004042,30]
[398187387,1765428656266,-2816.0,0.000405,120]
[398187388,1765428656275,-3956.59095874,0.000405,120]
[398187389,1765428656285,-500.0,0.00040547,120]
[398187390,1765428656294,-500.0,0.00040547,120]
[398187391,1765428656304,-500.0,0.00040547,120]
[398187392,1765428656313,-500.0,0.00040547,120]
[398187393,1765428656323,-500.0,0.00040547,120]
[398187394,1765428656332,-500.0,0.00040547,120]
[398187395,1765428656342,-500.0,0.00040547,120]
[398187396,1765428656351,-476.66269785,0.00040547,120]
[398187397,1765428656361,-600.0,0.00040548,30]
[398187398,1765428656371,-1000.0,0.000406,7]
[398187399,1765428656381,-1784.51389124,0.00040603,2]
[398187400,1765428656391,-476.45,0.000407,120]
[398187401,1765428656400,-5800.0,0.00040719,14]
[398187402,1765428656409,-5800.0,0.00040727,14]
[398187403,1765428656419,-5800.0,0.00040736,14]
[398187404,1765428656428,-5800.0,0.00040744,14]
[398187405,1765428656438,-5800.0,0.00040753,14]
[398187406,1765428656448,-5800.0,0.00040761,14]
[398187407,1765428656458,-5800.0,0.0004077,14]
[398187408,1765428656470,-5800.0,0.00040778,14]
[398187409,1765428656480,-5800.0,0.00040787,14]
[398187410,1765428656491,-5800.0,0.00040795,14]
[398187411,1765428656501,-150.0,0.000408,23]
[398187412,1765428656511,-413.19753253,0.00040804,120]
[398187413,1765428656520,-521.04985496,0.00040821,120]
[398187414,1765428656530,-297.20570438,0.0004083,120]
[398187415,1765428656541,-182.0,0.00040836,30]
[398187416,1765428656550,-150.0,0.00040846,120]
[398187417,1765428656560,-3794.568,0.00040904,59]
[398187418,1765428656569,-1061.08,0.00040994,2]
[398187419,1765428656579,-500.0,0.00040994,60]
[398187420,1765428656588,-850.34920464,0.00040995,120]
[398187421,1765428656598,-19509.51681869,0.00040995,15]
[398187422,1765428656607,-1072.21506205,0.00040995,2]
[398187423,1765428656616,-11682.41586436,0.00040995,15]
[398187424,1765428656626,-1784.51389124,0.00040995,2]
[398187425,1765428656635,-613.69350385,0.00041,30]
[398187426,1765428656645,-1000.0,0.00041,120]
[398187427,1765428656655,-563.8777045,0.00041,120]
[398187428,1765428656664,-1000.0,0.00041,120]
[398187429,1765428656674,-1000.0,0.00041,30]
[398187430,1765428656683,-1020.86687962,0.00041,120]
[398187431,1765428656693,-10000.0,0.00041,120]
[398187432,1765428656703,-2260.19929109,0.00041,120]
[398187433,1765428656712,-151.0,0.00041,120]
[398187434,1765428656721,-151.0,0.00041,120]
[398187435,1765428656732,-151.0,0.00041,120]
[398187436,1765428656741,-151.0,0.00041,120]
[398187437,1765428656750,-151.0,0.00041,120]
[398187438,1765428656759,-236.567265,0.00041,120]
[398187439,1765428656768,-151.0,0.00041,120]
[398187440,1765428656778,-236.567265,0.00041,120]
[398187441,1765428656787,-151.0,0.00041,120]
[398187442,1765428656796,-236.567265,0.00041,120]
[398187443,1765428656805,-236.56727,0.00041,120]
[398187444,1765428656815,-151.0,0.00041,120]
[398187445,1765428656824,-151.0,0.00041,120]
[398187446,1765428656833,-239.603751,0.00041,120]
[398187447,1765428656842,-239.603751,0.00041,120]
[398187448,1765428656851,-239.603751,0.00041,120]
[398187449,1765428656860,-239.603753,0.00041,120]
[398187450,1765428656870,-279.692356,0.00041,120]
[398187451,1765428656879,-279.692356,0.00041,120]
[398187452,1765428656889,-279.692356,0.00041,120]
[398187453,1765428656898,-279.692361,0.00041,120]
[398187454,1765428656907,-151.0,0.00041,120]
[398187455,1765428656917,-151.0,0.00041,120]
[398187456,1765428656926,-786.407518,0.00041,120]
[398187457,1765428656935,-151.0,0.00041,120]
[398187458,1765428656945,-151.0,0.00041,120]
[398187459,1765428656954,-151.0,0.00041,120]
[398187460,1765428656963,-786.407518,0.00041,120]
[398187461,1765428656973,-151.0,0.00041,120]
[398187462,1765428656982,-177.026106,0.00041,120]
[398187463,1765428656992,-786.407518,0.00041,120]
[398187464,1765428657001,-151.0,0.00041,120]
[398187465,1765428657011,-177.026106,0.00041,120]
[398187466,1765428657021,-786.407518,0.00041,120]
[398187467,1765428657031,-151.0,0.00041,60]
[398187468,1765428657040,-177.026106,0.00041,120]
[398187469,1765428657049,-151.0,0.00041,60]
[398187470,1765428657058,-177.026106,0.00041,120]
[398187471,1765428657068,-270.107565,0.00041,120]
[398187472,1765428657077,-833.812106,0.00041,120]
[398187473,1765428657086,-270.107565,0.00041,120]
[398187474,1765428657095,-833.812106,0.00041,120]
[398187475,1765428657104,-270.107565,0.00041,120]
[398187476,1765428657116,-833.812106,0.00041,120]
[398187477,1765428657126,-270.107565,0.00041,120]
[398187478,1765428657135,-151.0,0.00041,120]
[398187479,1765428657144,-833.812106,0.00041,120]
[398187480,1765428657155,-151.0,0.00041,120]
[398187481,1765428657164,-237.859404,0.00041,120]
[398187482,1765428657173,-237.859404,0.00041,120]
[398187483,1765428657182,-237.859404,0.00041,120]
[398187484,1765428657192,-463.407859,0.00041,120]
[398187485,1765428657203,-237.859404,0.00041,120]
[398187486,1765428657213,-463.407859,0.00041,120]
[398187487,1765428657223,-463.407859,0.00041,120]
[398187488,1765428657232,-463.407859,0.00041,120]
[398187489,1765428657242,-151.000005,0.00041,120]
[398187490,1765428657251,-514.192808,0.00041,120]
[398187491,1765428657260,-514.192808,0.00041,120]
[398187492,1765428657270,-514.192808,0.00041,120]
[398187493,1765428657279,-514.192808,0.00041,120]
[398187494,1765428657288,-574.368009,0.00041,120]
[398187495,1765428657298,-574.368009,0.00041,120]
[398187496,1765428657307,-574.368009,0.00041,120]
[398187497,1765428657316,-574.368009,0.00041,120]
[398187498,1765428657325,-2156.522747,0.00041,120]
[398187499,1765428657334,-151.0,0.00041,120]
[398187500,1765428657344,-2156.522747,0.00041,120]
[398187501,1765428657353,-369.22941,0.00041,120]
[398187502,1765428657363,-151.0,0.00041,60]
[398187503,1765428657372,-151.0,0.00041,120]
[398187504,1765428657381,-2156.522747,0.00041,120]
[398187505,1765428657391,-1371.321467,0.00041,120]
[398187506,1765428657401,-369.22941,0.00041,120]
[398187507,1765428657410,-151.0,0.00041,60]
[398187508,1765428657420,-151.0,0.00041,120]
[398187509,1765428657429,-151.0,0.00041,120]
[398187510,1765428657438,-2156.522747,0.00041,120]
[398187511,1765428657448,-1371.321467,0.00041,120]
[398187512,1765428657457,-369.22941,0.00041,120]
[398187513,1765428657467,-185.716191,0.00041,120]
[398187514,1765428657477,-151.0,0.00041,60]
[398187515,1765428657486,-1371.321467,0.00041,120]
[398187516,1765428657495,-369.22941,0.00041,120]
[398187517,1765428657505,-1371.321467,0.00041,120]
[398187518,1765428657515,-151.0,0.00041,120]
[398187519,1765428657525,-151.0,0.00041,120]
[398187520,1765428657535,-151.0,0.00041,120]
[398187521,1765428657544,-151.0,0.00041,120]
[398187522,1765428657554,-157.661309,0.00041,120]
[398187523,1765428657564,-360.74093,0.00041,120]
[398187524,1765428657574,-762.732334,0.00041,120]
[398187525,1765428657583,-157.661309,0.00041,120]
[398187526,1765428657592,-360.74093,0.00041,120]
[398187527,1765428657601,-252.536931,0.00041,120]
[398187528,1765428657611,-157.661309,0.00041,120]
[398187529,1765428657621,-762.732334,0.00041,120]
[398187530,1765428657630,-360.74093,0.00041,120]
[398187531,1765428657640,-374.3489,0.00041,120]
[398187532,1765428657649,-252.536931,0.00041,120]
[398187533,1765428657659,-360.74093,0.00041,120]
[398187534,1765428657668,-762.732334,0.00041,120]
[398187535,1765428657678,-374.3489,0.00041,120]
[398187536,1765428657688,-252.536931,0.00041,120]
[398187537,1765428657698,-374.3489,0.00041,120]
[398187538,1765428657708,-762.732334,0.00041,120]
[398187539,1765428657718,-252.536931,0.00041,120]
[398187540,1765428657729,-310.999827,0.00041,120]
[398187541,1765428657742,-157.661309,0.00041,120]
[398187542,1765428657752,-374.3489,0.00041,120]
[398187543,1765428657761,-310.999827,0.00041,120]
[398187544,1765428657773,-151.0,0.00041,120]
[398187545,1765428657785,-310.999827,0.00041,120]
[398187546,1765428657798,-310.999827,0.00041,120]
[398187547,1765428657807,-1769.767168,0.00041,120]
[398187548,1765428657816,-1769.767168,0.00041,120]
[398187549,1765428657825,-1769.767168,0.00041,120]
[398187550,1765428657835,-1769.767168,0.00041,120]
[398187551,1765428657845,-151.0,0.00041,120]
[398187552,1765428657855,-151.0,0.00041,120]
[398187553,1765428657863,-151.0,0.00041,120]
[398187554,1765428657873,-151.0,0.00041,120]
[398187555,1765428657882,-151.0,0.00041,120]
[398187556,1765428657891,-170.985592,0.00041,120]
[398187557,1765428657900,-1140.999619,0.00041,120]
[398187558,1765428657909,-170.985592,0.00041,120]
[398187559,1765428657918,-1140.999619,0.00041,120]
[398187560,1765428657927,-151.0,0.00041,120]
[398187561,1765428657937,-170.985592,0.00041,120]
[398187562,1765428657947,-1140.999619,0.00041,120]
[398187563,1765428657956,-151.0,0.00041,120]
[398187564,1765428657965,-285.411958,0.00041,120]
[398187565,1765428657974,-170.985592,0.00041,120]
[398187566,1765428657988,-285.411958,0.00041,120]
[398187567,1765428657997,-285.411958,0.00041,120]
[398187568,1765428658006,-561.205675,0.00041,120]
[398187569,1765428658015,-285.411958,0.00041,120]
[398187570,1765428658024,-561.205675,0.00041,120]
[398187571,1765428658033,-561.205675,0.00041,120]
[398187572,1765428658043,-1140.999619,0.00041,120]
[398187573,1765428658053,-151.0,0.00041,120]
[398187574,1765428658064,-561.205675,0.00041,120]
[398187575,1765428658078,-1544.90724,0.00041,120]
[398187576,1765428658092,-151.0,0.00041,120]
[398187577,1765428658101,-1544.90724,0.00041,120]
[398187578,1765428658112,-151.0,0.00041,120]
[398187579,1765428658126,-1544.90724,0.00041,120]
[398187580,1765428658135,-151.0,0.00041,120]
[398187581,1765428658145,-1544.907248,0.00041,120]
[398187582,1765428658155,-903.896614,0.00041,120]
[398187583,1765428658166,-903.896614,0.00041,120]
[398187584,1765428658176,-903.896614,0.00041,120]
[398187585,1765428658186,-1188.819173,0.00041,120]
[398187586,1765428658198,-903.896607,0.00041,120]
[398187587,1765428658208,-1188.819173,0.00041,120]
[398187588,1765428658217,-180.23917,0.00041,120]
[398187589,1765428658227,-1188.819173,0.00041,120]
[398187590,1765428658241,-180.23917,0.00041,120]
[398187591,1765428658250,-3809.007,0.00041004,2]
[398187592,1765428658260,-300.0,0.00041094,10]
[398187593,1765428658269,-300.0,0.00041094,10]
[398187594,1765428658279,-666.0,0.00041094,30]
[398187595,1765428658288,-1061.08,0.00041094,2]
[398187596,1765428658297,-1061.08,0.00041094,2]
[398187597,1765428658306,-1061.08,0.00041094,2]
[398187598,1765428658318,-1061.08,0.00041094,2]
[398187599,1765428658327,-1061.08,0.00041094,2]
[398187600,1765428658338,-1061.08,0.00041094,2]
[398187601,1765428658347,-1061.08,0.00041094,2]
[398187602,1765428658357,-1061.08,0.00041094,2]
[398187603,1765428658366,-1061.08,0.00041094,2]
[398187604,1765428658375,-1061.08,0.00041094,2]
[398187605,1765428658384,-1061.14890866,0.00041094,2]
[398187606,1765428658393,-500.0,0.00041094,60]
[398187607,1765428658587,-500.0,0.00041094,60]
[398187608,1765428658601,-500.0,0.00041094,60]
[398187609,1765428658612,-500.0,0.00041094,60]
[398187610,1765428658623,-500.0,0.00041094,60]
[398187611,1765428658633,-351.9,0.00041094,60]
[398187612,1765428658645,-500.0,0.00041094,60]
[398187613,1765428658655,-500.0,0.00041094,60]
[398187614,1765428658664,-500.0,0.00041094,60]
[398187615,1765428658674,-500.0,0.00041094,60]
[398187616,1765428658683,-500.0,0.00041094,60]
[398187617,1765428658693,-500.0,0.00041094,60]
[398187618,1765428658702,-500.0,0.00041094,60]
[398187619,1765428658711,-500.0,0.00041094,60]
[398187620,1765428658721,-219.88,0.00041094,60]
[398187621,1765428658730,-500.0,0.00041094,60]
[398187622,1765428658741,-500.0,0.00041094,60]
[398187623,1765428658751,-246.87,0.00041094,60]
[398187624,1765428658760,-151.0,0.00041094,120]
[398187625,1765428658770,-159.956822,0.00041094,120]
[398187626,1765428658780,-151.0,0.00041094,120]
[398187627,1765428658790,-393.67655,0.00041094,120]
[398187628,1765428658800,-151.0,0.00041094,120]
[398187629,1765428658810,-393.67655,0.00041094,120]
[398187630,1765428658820,-152.622074,0.00041094,120]
[398187631,1765428658829,-393.67655,0.00041094,120]
[398187632,1765428658839,-151.0,0.00041094,120]
[398187633,1765428658849,-393.676544,0.00041094,120]
[398187634,1765428658858,-151.0,0.00041094,120]
[398187635,1765428658868,-151.0,0.00041094,120]
[398187636,1765428658877,-300.0,0.00041094,10]
[398187637,1765428658887,-300.0,0.00041094,10]
[398187638,1765428658901,-244.63188995,0.00041094,30]
[398187639,1765428658910,-128029.48220738,0.00041095,33]
[398187640,1765428658919,-306.55157077,0.00041095,10]
[398187641,1765428658929,-2000.0,0.00041095,14]
[398187642,1765428658938,-2000.0,0.00041095,14]
[398187643,1765428658947,-2029.6079421,0.00041095,14]
[398187644,1765428658957,-501.72523298,0.00041095,60]
[398187645,1765428658966,-501.36208661,0.00041095,60]
[398187646,1765428658975,-500.0,0.00041095,60]
[398187647,1765428658986,-500.0,0.00041095,60]
[398187648,1765428658996,-500.0,0.00041095,60]
[398187649,1765428659006,-502.10488973,0.00041095,60]
[398187650,1765428659016,-500.0,0.00041095,60]
[398187651,1765428659025,-502.05510341,0.00041095,60]
[398187652,1765428659035,-501.80345218,0.00041095,60]
[398187653,1765428659044,-172.56187013,0.00041095,60]
[398187654,1765428659054,-507.12478197,0.00041095,60]
[398187655,1765428659063,-500.82380484,0.00041095,60]
[398187656,1765428659073,-500.0,0.00041095,60]
[398187657,1765428659083,-503.82776616,0.00041095,60]
[398187658,1765428659092,-500.0,0.00041095,60]
[398187659,1765428659102,-501.88978102,0.00041095,16]
[398187660,1765428659112,-501.82994892,0.00041095,60]
[398187661,1765428659126,-503.61204699,0.00041095,60]
[398187662,1765428659135,-501.64638748,0.00041095,60]
[398187663,1765428659145,-501.57521357,0.00041095,60]
[398187664,1765428659155,-501.8807812,0.00041095,60]
[398187665,1765428659164,-504.83759041,0.00041095,60]
[398187666,1765428659174,-502.02526835,0.00041095,60]
[398187667,1765428659183,-509.86058173,0.00041095,60]
[398187668,1765428659194,-197.90604057,0.00041095,60]
[398187669,1765428659203,-504.36900445,0.00041095,60]
[398187670,1765428659213,-500.36635511,0.00041095,3]
[398187671,1765428659223,-528.55995537,0.00041095,60]
[398187672,1765428659232,-500.0,0.00041095,60]
[398187673,1765428659243,-501.04061551,0.00041095,60]
[398187674,1765428659253,-500.0,0.00041095,60]
[398187675,1765428659267,-507.71483346,0.00041095,60]
[398187676,1765428659277,-518.15531533,0.00041095,60]
[398187677,1765428659287,-500.0,0.00041095,60]
[398187678,1765428659296,-511.28587671,0.00041095,60]
[398187679,1765428659306,-500.0,0.00041095,60]
[398187680,1765428659316,-504.30340641,0.00041095,60]
[398187681,1765428659326,-500.0,0.00041095,60]
[398187682,1765428659336,-504.96596933,0.00041095,60]
[398187683,1765428659345,-500.0,0.00041095,60]
[398187684,1765428659354,-500.0,0.00041095,60]
[398187685,1765428659364,-506.92450769,0.00041095,60]
[398187686,1765428659374,-500.0,0.00041095,60]
[398187687,1765428659383,-505.74292112,0.00041095,60]
[398187688,1765428659393,-500.0,0.00041095,60]
[398187689,1765428659403,-500.0,0.00041095,60]
[398187690,1765428659413,-512.96914593,0.00041095,60]
[398187691,1765428659424,-502.32479812,0.00041095,60]
[398187692,1765428659434,-504.64304801,0.00041095,60]
[398187693,1765428659443,-500.0,0.00041095,60]
[398187694,1765428659453,-510.05446252,0.00041095,60]
[398187695,1765428659463,-500.0,0.00041095,60]
[398187696,1765428659473,-500.0,0.00041095,60]
[398187697,1765428659483,-503.75834359,0.00041095,60]
[398187698,1765428659495,-500.0,0.00041095,60]
[398187699,1765428659505,-500.0,0.00041095,60]
[398187700,1765428659515,-523.57970247,0.00041095,60]
[398187701,1765428659524,-500.0,0.00041095,60]
[398187702,1765428659534,-639.9516879,0.00041095,60]
[398187703,1765428659543,-508.52702774,0.00041095,60]
[398187704,1765428659553,-501.95795572,0.00041095,60]
[398187705,1765428659563,-500.0,0.00041095,60]
[398187706,1765428659572,-518.6923177,0.00041095,60]
[398187707,1765428659582,-505.19739695,0.00041095,60]
[398187708,1765428659591,-500.0,0.00041095,60]
[398187709,1765428659601,-500.0,0.00041095,60]
[398187710,1765428659610,-504.76527932,0.00041095,60]
[398187711,1765428659620,-500.0,0.00041095,60]
[398187712,1765428659633,-500.0,0.00041095,60]
[398187713,1765428659642,-500.0,0.00041095,60]
[398187714,1765428659651,-511.90294551,0.00041095,60]
[398187715,1765428659661,-500.0,0.00041095,60]
[398187716,1765428659670,-500.0,0.00041095,60]
[398187717,1765428659680,-504.00091488,0.00041095,60]
[398187718,1765428659689,-500.0,0.00041095,60]
[398187719,1765428659698,-500.0,0.00041095,60]
[398187720,1765428659707,-506.59135422,0.00041095,60]
[398187721,1765428659717,-500.0,0.00041095,60]
[398187722,1765428659726,-500.0,0.00041095,60]
[398187723,1765428659735,-500.0,0.00041095,60]
[398187724,1765428659745,-500.0,0.00041095,60]
[398187725,1765428659754,-506.43412197,0.00041095,60]
[398187726,1765428659763,-500.0,0.00041095,60]
[398187727,1765428659773,-500.0,0.00041095,60]